bitfinex-derivatives/quotes_BTCF0:USTF0_20250926
["timestamp","ask_amount","ask_price","bid_price","bid_amount"]
[1758891914648,0.1306763,109400.0,109390.0,0.09142021]
[1758891914850,0.1278957,109390.0,109380.0,0.0913529]
[1758891915554,0.01368,109390.0,109380.0,0.0913529]
[1758891915745,0.01368,109390.0,109380.0,0.18277311]
[1758891915946,0.01368,109390.0,109380.0,0.93579467]
[1758891916254,0.003,109400.0,109380.0,1.09777273]
[1758891916447,0.003,109400.0,109390.0,1.30256616]
[1758891916649,0.001,109400.0,109390.0,1.30256616]
[1758891916850,0.01271,109410.0,109400.0,0.091336]
[1758891917049,0.01368,109420.0,109410.0,0.0913277]
[1758891917249,0.01368,109420.0,109410.0,0.10051279]
[1758891917453,0.03655,109420.0,109410.0,0.18272284]
[1758891918347,0.1328696,109420.0,109410.0,0.18272284]
[1758891918750,0.04155,109420.0,109410.0,0.18272284]
[1758891919855,0.05455,109420.0,109410.0,0.18272284]
[1758891922453,0.1458696,109420.0,109410.0,0.18272284]
[1758891923459,0.1408693,109420.0,109410.0,0.18272284]
[1758891923758,0.1278693,109420.0,109410.0,0.18772284]
[1758891924362,0.03655,109420.0,109410.0,0.18772284]
[1758891926552,0.01368,109420.0,109410.0,0.18772284]
[1758891926861,0.03655,109420.0,109410.0,0.18772284]
[1758891929664,0.01368,109420.0,109410.0,0.58772284]
[1758891931453,0.01368,109420.0,109410.0,1.44556284]
[1758891931853,0.01368,109420.0,109410.0,1.5107381]
[1758891932657,0.01368,109420.0,109410.0,1.1107381]
[1758891934167,0.01368,109420.0,109410.0,1.04556284]
[1758891934368,0.01368,109420.0,109410.0,1.1107381]
[1758891935068,0.1049996,109420.0,109410.0,1.1107381]
[1758891935863,0.01368,109420.0,109410.0,1.1107381]
[1758891936770,0.01368,109420.0,109410.0,1.04556284]
[1758891937372,0.01368,109420.0,109410.0,1.1107381]
[1758891938072,0.1260296,109420.0,109410.0,0.18772284]
[1758891938266,0.1260296,109420.0,109410.0,1.04544284]
[1758891939676,0.1280296,109420.0,109410.0,0.18772284]
[1758891939871,0.88105116,109420.0,109410.0,0.005]
[1758891940070,0.1257279,109410.0,109400.0,0.15650666]
[1758891940267,0.1047062,109400.0,109390.0,0.15651296]
[1758891940471,0.1257362,109400.0,109390.0,0.0913377]
[1758891940667,0.1257362,109400.0,109390.0,0.24787417]
[1758891941177,0.0344,109400.0,109390.0,0.24787417]
[1758891941377,0.1207361,109400.0,109390.0,0.24787417]
[1758891942573,0.1207361,109400.0,109390.0,0.24887417]
[1758891943774,0.1207361,109400.0,109390.0,0.25587417]
[1758891945280,0.45761894,109400.0,109390.0,0.25587417]
[1758891945975,0.85761894,109400.0,109390.0,0.25587417]
[1758891946181,0.85761894,109400.0,109390.0,0.07313297]
[1758891946378,0.86661894,109400.0,109390.0,0.001]
[1758891946582,0.86661894,109400.0,109390.0,0.0923445]
[1758891947180,0.5297361,109400.0,109390.0,0.0923445]
[1758891948775,0.0384,109400.0,109390.0,0.52063919]
[1758891948975,0.01737,109400.0,109390.0,0.58577216]
[1758891949281,0.01937,109400.0,109390.0,0.58477216]
[1758891949675,0.01937,109400.0,109390.0,0.91963919]
[1758891950282,0.01737,109400.0,109390.0,0.91963919]
[1758891950482,0.01737,109400.0,109390.0,1.77819919]
[1758891950683,0.01737,109400.0,109390.0,1.44131635]
[1758891950979,0.01737,109400.0,109390.0,0.58375635]
[1758891951172,0.01737,109400.0,109390.0,1.44131635]
[1758891951576,0.00837,109400.0,109390.0,1.44831635]
[1758891951880,0.01337,109410.0,109400.0,0.0913359]
[1758891952185,0.01368,109420.0,109410.0,0.0913276]
[1758891952383,0.01368,109420.0,109410.0,0.15640614]
[1758891952880,0.01368,109420.0,109410.0,0.24780964]
[1758891953384,0.01368,109420.0,109410.0,0.25694854]
[1758891954082,0.01568,109420.0,109410.0,0.25694854]
[1758891954672,0.03671,109420.0,109410.0,0.25694854]
[1758891955073,0.04171,109420.0,109410.0,0.25694854]
[1758891955283,0.04171,109420.0,109410.0,0.19187]
[1758891955884,0.04171,109420.0,109410.0,0.25694854]
[1758891956186,0.04171,109420.0,109410.0,0.24780964]
[1758891957284,0.04171,109420.0,109410.0,0.25694287]
[1758891958087,0.04171,109420.0,109410.0,0.24780964]
[1758891958283,0.1330292,109420.0,109410.0,0.24780964]
[1758891959282,0.04171,109420.0,109410.0,0.24780964]
[1758891959476,0.1330292,109420.0,109410.0,0.24780964]
[1758891960980,0.04171,109420.0,109410.0,0.24780964]
[1758891961181,0.02068,109420.0,109410.0,0.24780964]
[1758891961686,0.02068,109420.0,109410.0,0.60064089]
[1758891961886,0.02068,109420.0,109410.0,0.24780964]
[1758891962282,0.02068,109420.0,109410.0,0.1827311]
[1758891962686,0.02068,109420.0,109410.0,0.57724938]
[1758891963381,0.02068,109420.0,109410.0,1.49955455]
[1758891963582,0.02068,109420.0,109410.0,1.43448938]
[1758891964088,0.02068,109420.0,109410.0,1.43444938]
[1758891964290,0.1119992,109420.0,109410.0,0.55098645]
[1758891964480,0.5330292,109420.0,109410.0,0.24779577]
[1758891966300,0.5330292,109420.0,109410.0,0.15646817]
[1758891966487,0.92754748,109420.0,109410.0,0.06506467]
[1758891966996,0.1261978,109410.0,109400.0,0.15640057]
[1758891967184,0.1261978,109410.0,109400.0,0.06506467]
[1758891967380,0.1261978,109410.0,109400.0,0.15645981]
[1758891967595,0.92071608,109410.0,109400.0,0.15645981]
[1758891968988,0.92071608,109410.0,109400.0,0.06506467]
[1758891969188,0.92071608,109410.0,109400.0,0.001]
[1758891970182,0.5261978,109410.0,109400.0,0.001]
[1758891970388,0.92071608,109410.0,109400.0,0.001]
[1758891970893,0.0913445,109390.0,109380.0,0.06506467]
[1758891971090,0.1262228,109380.0,109370.0,0.15642587]
[1758891971400,0.1262228,109380.0,109370.0,0.15646817]
[1758891971887,0.5262228,109380.0,109370.0,0.06506467]
[1758891972088,0.5242228,109380.0,109370.0,0.06506467]
[1758891972791,1.77586108,109380.0,109370.0,0.15642557]
[1758891973096,1.3813428,109380.0,109370.0,0.17642557]
[1758891973293,1.3813428,109380.0,109370.0,0.02]
[1758891973597,1.39037909,109380.0,109370.0,0.008]
[1758891974593,0.53325909,109380.0,109370.0,0.008]
[1758891974791,1.78489737,109380.0,109370.0,0.008]
[1758891975099,1.85721839,109380.0,109370.0,0.008]
[1758891975299,1.00009839,109380.0,109370.0,0.008]
[1758891975501,1.85725839,109380.0,109370.0,0.008]
[1758891975896,1.46274011,109380.0,109370.0,0.008]
[1758891976103,1.46274011,109380.0,109370.0,0.0993612]
[1758891976596,1.06274011,109380.0,109370.0,0.0993612]
[1758891977496,1.45725839,109380.0,109370.0,0.008]
[1758891977702,1.85725839,109380.0,109370.0,0.008]
[1758891978595,0.0913612,109370.0,109360.0,0.3608]
[1758891978802,0.52074948,109370.0,109360.0,0.3608]
[1758891979195,0.92074948,109370.0,109360.0,0.3608]
[1758891979695,0.92074948,109370.0,109360.0,0.3258]
[1758891980203,0.92074948,109370.0,109360.0,0.2908]
[1758891980398,0.92074948,109370.0,109360.0,0.25409913]
[1758891980702,0.92674948,109370.0,109360.0,0.25409913]
[1758891981004,1.78398948,109370.0,109360.0,0.25409913]
[1758891981999,1.78598948,109370.0,109360.0,0.25409913]
[1758891982697,1.78602948,109370.0,109360.0,0.25409913]
[1758891983093,0.1342312,109370.0,109360.0,0.27535913]
[1758891983299,0.6689112,109370.0,109360.0,0.27535913]
[1758891983498,1.06342948,109370.0,109360.0,0.25409913]
[1758891984397,0.6689112,109370.0,109360.0,0.25409913]
[1758891985392,0.9925112,109370.0,109360.0,0.25409913]
[1758891985598,1.38702948,109370.0,109360.0,0.25409913]
[1758891986003,0.9925112,109370.0,109360.0,0.25409913]
[1758891987506,1.38702948,109370.0,109360.0,0.25409913]
[1758891988006,1.38698948,109370.0,109360.0,0.25409913]
[1758891988200,1.38646948,109370.0,109360.0,0.25409913]
[1758891988705,0.52874948,109370.0,109360.0,0.25409913]
[1758891988906,1.38630948,109370.0,109360.0,0.25409913]
[1758891989808,0.52874948,109370.0,109360.0,0.25409913]
[1758891990006,1.38634948,109370.0,109360.0,0.25409913]
[1758891990209,1.38618948,109370.0,109360.0,0.25409913]
[1758891990604,1.37099505,109370.0,109360.0,0.25409913]
[1758891990905,0.51355505,109370.0,109360.0,0.25409913]
[1758891991301,1.37099505,109370.0,109360.0,0.25409913]
[1758891991810,0.51355505,109370.0,109360.0,0.25409913]
[1758891992113,1.37099505,109370.0,109360.0,0.25409913]
[1758891993408,1.77099505,109370.0,109360.0,0.25409913]
[1758891994309,1.37103505,109370.0,109360.0,0.27535913]
[1758891994700,1.37103505,109370.0,109360.0,0.25409913]
[1758891995107,0.51355505,109370.0,109360.0,0.27607913]
[1758891995306,1.37103505,109370.0,109360.0,0.27607913]
[1758891995705,1.27967385,109370.0,109360.0,0.27607913]
[1758891996514,1.27967385,109370.0,109360.0,0.25409913]
[1758891996908,1.27967385,109370.0,109360.0,0.27607913]
[1758891997214,0.42219385,109370.0,109360.0,0.27607913]
[1758891997414,1.27967385,109370.0,109360.0,0.27607913]
[1758891999006,0.02948,109370.0,109360.0,1.06809298]
[1758891999312,1.26628385,109370.0,109360.0,1.06809298]
[1758891999504,1.26628385,109370.0,109360.0,0.66809298]
[1758892000115,1.26628385,109370.0,109360.0,1.06809298]
[1758892000415,1.26628385,109370.0,109360.0,0.66809298]
[1758892000613,0.40880385,109370.0,109360.0,0.66809298]
[1758892000813,0.02948,109370.0,109360.0,0.66809298]
[1758892001113,0.88692,109370.0,109360.0,0.66809298]
[1758892002416,1.26624385,109370.0,109360.0,0.66809298]
[1758892002617,1.27912385,109370.0,109360.0,0.28876913]
[1758892004513,1.27912385,109370.0,109360.0,0.27607913]
[1758892004713,1.77048155,109370.0,109360.0,0.18409913]
[1758892004916,1.77048155,109370.0,109330.0,0.09362961]
[1758892004917,0.0913838,109340.0,109330.0,0.15879905]
[1758892005112,1.34974888,109340.0,109330.0,0.01269]
[1758892005311,1.34974888,109340.0,109330.0,1e-07]
[1758892005514,1.74974888,109340.0,109330.0,1e-07]
[1758892006012,2.12907273,109340.0,109330.0,1e-07]
[1758892006216,1.27167273,109340.0,109330.0,1e-07]
[1758892006416,2.13407273,109340.0,109330.0,1e-07]
[1758892006619,1.77091505,109340.0,109330.0,1e-07]
[1758892007113,1.77891505,109340.0,109330.0,1e-07]
[1758892007512,1.37895505,109340.0,109330.0,1e-07]
[1758892007818,1.4517923,109340.0,109330.0,1e-07]
[1758892012118,0.0913941,109330.0,109320.0,0.01269]
[1758892012320,0.48688412,109330.0,109320.0,0.01269]
[1758892013020,0.0914024,109320.0,109310.0,0.01269]
[1758892013321,1.34441242,109320.0,109310.0,0.01269]
[1758892013920,0.0914108,109310.0,109300.0,0.01269]
[1758892014125,1.34442082,109310.0,109300.0,0.01269]
[1758892014625,0.48690082,109310.0,109300.0,0.01269]
[1758892014816,0.50524585,109310.0,109300.0,0.01269]
[1758892015020,1.36276585,109310.0,109300.0,0.01269]
[1758892015620,1.76276585,109310.0,109300.0,0.01269]
[1758892016523,1.74442082,109310.0,109300.0,0.01269]
[1758892016915,1.74642082,109310.0,109300.0,0.04269]
[1758892017119,1.74646082,109310.0,109300.0,0.04269]
[1758892017627,0.88790082,109310.0,109300.0,0.02969]
[1758892017926,1.34546082,109310.0,109300.0,0.02969]
[1758892018524,1.34546082,109310.0,109300.0,0.017]
[1758892018726,1.34546082,109310.0,109300.0,0.02969]
[1758892018920,1.34746082,109310.0,109300.0,0.02969]
[1758892020227,0.48990082,109310.0,109300.0,0.02969]
[1758892020527,1.34754082,109310.0,109300.0,0.02969]
[1758892024523,0.48990082,109310.0,109300.0,0.02969]
[1758892024728,1.30573465,109310.0,109300.0,0.02969]
[1758892026633,1.28967329,109310.0,109300.0,0.02969]
[1758892028032,0.0914191,109300.0,109290.0,0.01269]
[1758892028218,0.42904159,109300.0,109290.0,0.01269]
[1758892028627,0.44721322,109300.0,109290.0,0.01269]
[1758892029232,0.84721322,109300.0,109290.0,0.01269]
[1758892030526,0.50959073,109300.0,109290.0,0.01269]
[1758892030726,1.31077322,109300.0,109290.0,0.01269]
[1758892031530,0.45321322,109300.0,109290.0,0.01269]
[1758892031732,0.0974191,109300.0,109290.0,0.43458]
[1758892031935,1.29260159,109300.0,109290.0,0.43458]
[1758892032133,1.29460159,109300.0,109290.0,0.43458]
[1758892032636,1.36929384,109300.0,109290.0,0.43458]
[1758892032840,1.36929384,109300.0,109290.0,0.03458]
[1758892033536,1.36929384,109300.0,109290.0,0.01269]
[1758892033736,1.80968491,109300.0,109290.0,0.01269]
[1758892036033,0.95216491,109300.0,109290.0,0.01269]
[1758892036231,1.80972491,109300.0,109290.0,0.01269]
[1758892037040,1.80968491,109300.0,109290.0,0.01269]
[1758892039043,0.0914275,109290.0,109280.0,0.01269]
[1758892039236,0.45092982,109290.0,109280.0,0.01269]
[1758892039937,0.78855231,109290.0,109280.0,0.01269]
[1758892040136,0.45092982,109290.0,109280.0,0.01269]
[1758892041350,0.45092982,109290.0,109280.0,0.01369]
[1758892041543,1.30848982,109290.0,109280.0,0.01369]
[1758892041842,1.30848982,109290.0,109280.0,0.01269]
[1758892042043,1.31348982,109290.0,109280.0,0.01269]
[1758892042246,1.31448982,109290.0,109280.0,0.01269]
[1758892045441,1.31448982,109290.0,109280.0,0.03458]
[1758892045638,1.31448982,109290.0,109280.0,0.01269]
[1758892046843,0.11930733,109290.0,109280.0,0.5260159]
[1758892047041,0.45692982,109290.0,109280.0,0.43458]
[1758892047247,1.31444982,109290.0,109280.0,0.43458]
[1758892049346,1.31444982,109290.0,109280.0,0.41269]
[1758892049644,1.31444982,109290.0,109280.0,0.01269]
[1758892050950,1.65207231,109290.0,109280.0,0.01269]
[1758892051142,2.05207231,109290.0,109280.0,0.01269]
[1758892052542,1.73068645,109290.0,109280.0,0.01269]
[1758892055152,0.0914359,109280.0,109270.0,0.01269]
[1758892055353,0.48578774,109280.0,109270.0,0.01269]
[1758892056655,0.48678774,109280.0,109270.0,0.02469]
[1758892057354,0.48778774,109280.0,109270.0,0.02369]
[1758892057950,1.34526774,109280.0,109270.0,0.02369]
[1758892058150,0.48778774,109280.0,109270.0,0.02369]
[1758892058351,1.34526774,109280.0,109270.0,0.02369]
[1758892058552,1.34426774,109280.0,109270.0,0.01269]
[1758892058751,1.34526774,109280.0,109270.0,0.01769]
[1758892060356,1.34526774,109280.0,109270.0,0.005]
[1758892060659,1.34050583,109280.0,109270.0,0.005]
[1758892061255,1.34050583,109280.0,109270.0,0.0187]
[1758892061560,1.33950583,109280.0,109270.0,0.0187]
[1758892061756,1.34150583,109280.0,109270.0,0.0137]
[1758892061950,1.34450583,109280.0,109270.0,0.0147]
[1758892062459,3.20058583,109280.0,109270.0,0.0147]
[1758892063760,0.48702583,109280.0,109270.0,0.0147]
[1758892063962,3.20058583,109280.0,109270.0,0.0147]
[1758892064758,0.48702583,109280.0,109270.0,0.0147]
[1758892065064,1.34446583,109280.0,109270.0,0.03692]
[1758892065861,1.34446583,109280.0,109270.0,0.0147]
[1758892066261,0.99060671,109280.0,109270.0,0.03692]
[1758892066462,1.34446583,109280.0,109270.0,0.03692]
[1758892067954,0.48702583,109280.0,109270.0,0.43692]
[1758892068154,0.96868688,109280.0,109270.0,0.43692]
[1758892068356,0.99043551,109280.0,109270.0,0.43692]
[1758892068669,1.322546,109280.0,109270.0,0.43692]
[1758892068965,0.465146,109280.0,109270.0,0.43692]
[1758892069159,1.322546,109280.0,109270.0,0.43692]
[1758892069862,0.96868688,109280.0,109270.0,0.43692]
[1758892070264,0.09267399,109280.0,109270.0,0.43692]
[1758892070563,0.09267399,109280.0,109270.0,0.5283643]
[1758892070861,0.9548359,109280.0,109270.0,0.5283643]
[1758892071853,0.0974359,109280.0,109270.0,0.5283643]
[1758892072067,0.07469225,109300.0,109290.0,0.1273475]
[1758892072253,0.10049556,109320.0,109290.0,0.48120662]
[1758892072452,0.10049556,109320.0,109310.0,0.03592]
[1758892072652,0.77040866,109320.0,109310.0,0.03592]
[1758892072862,0.76132,109320.0,109310.0,0.03592]
[1758892073159,0.76132,109320.0,109310.0,0.43592]
[1758892073160,0.0914027,109320.0,109310.0,0.43592]
[1758892073367,0.7140827,109320.0,109310.0,0.43592]
[1758892073561,0.7160827,109320.0,109310.0,0.43592]
[1758892074368,1.07194182,109320.0,109310.0,0.03692]
[1758892074562,1.0762277,109320.0,109310.0,0.0147]
[1758892080459,1.3294677,109320.0,109310.0,0.0147]
[1758892081467,0.4535477,109320.0,109310.0,0.0147]
[1758892081654,1.3287077,109320.0,109310.0,0.0147]
[1758892085870,1.7287077,109320.0,109310.0,0.0147]
[1758892086664,3.62427908,109320.0,109310.0,0.0147]
[1758892089266,0.0914194,109300.0,109290.0,0.01140751]
[1758892089473,1.36421578,109300.0,109290.0,0.01140751]
[1758892089671,0.49133578,109300.0,109290.0,0.01140751]
[1758892089871,1.36389578,109300.0,109290.0,0.01140751]
[1758892090069,1.36389578,109300.0,109280.0,0.0137]
[1758892090070,0.0914278,109290.0,109280.0,0.0137]
[1758892090267,0.51017397,109290.0,109270.0,0.01352]
[1758892090571,1.36383248,109280.0,109270.0,0.01352]
[1758892090867,1.36451248,109280.0,109270.0,0.01352]
[1758892091071,1.36427248,109280.0,109270.0,0.01352]
[1758892091271,1.43605261,109280.0,109270.0,0.01352]
[1758892091765,0.56213261,109280.0,109270.0,0.01352]
[1758892092372,1.43585261,109280.0,109270.0,0.01352]
[1758892092573,1.43573261,109280.0,109270.0,0.0356]
[1758892092870,1.43573261,109280.0,109270.0,0.0366]
[1758892093071,1.43573261,109280.0,109270.0,0.01452]
[1758892093569,1.43573261,109280.0,109270.0,0.0366]
[1758892093972,1.43673261,109280.0,109270.0,0.01452]
[1758892094873,0.55884673,109280.0,109270.0,0.4366]
[1758892095176,1.03593623,109280.0,109270.0,0.4366]
[1758892095374,1.43156673,109280.0,109270.0,0.4366]
[1758892098567,1.03593623,109280.0,109270.0,0.4366]
[1758892098873,1.41585857,109280.0,109270.0,0.4366]
[1758892099676,0.54313857,109280.0,109270.0,0.4366]
[1758892099875,1.41473857,109280.0,109270.0,0.4366]
[1758892100774,1.41902445,109280.0,109270.0,0.0366]
[1758892101664,1.41902445,109280.0,109270.0,0.01452]
[1758892102072,0.54742445,109280.0,109270.0,0.0366]
[1758892102367,0.54313857,109280.0,109270.0,0.0366]
[1758892102568,1.41421857,109280.0,109270.0,0.0366]
[1758892103273,0.54313857,109280.0,109270.0,0.0366]
[1758892103479,1.41389857,109280.0,109270.0,0.81652234]
[1758892103773,0.54313857,109280.0,109270.0,0.9567964]
[1758892103973,0.54413857,109280.0,109270.0,0.9567964]
[1758892104172,1.41561857,109280.0,109270.0,0.9567964]
[1758892104577,1.03569623,109280.0,109270.0,0.57687406]
[1758892105076,0.94426013,109280.0,109270.0,0.5280445]
[1758892105373,1.03569603,109280.0,109270.0,0.5280445]
[1758892105877,1.03569603,109280.0,109270.0,0.59304884]
[1758892106676,1.03569603,109280.0,109270.0,0.5280445]
[1758892107569,1.03569603,109280.0,109270.0,0.59304884]
[1758892108678,1.03473603,109280.0,109270.0,0.5280445]
[1758892111081,0.07278013,109280.0,109270.0,0.5280445]
[1758892111281,0.001,109280.0,109270.0,1.01517741]
[1758892111967,0.001,109280.0,109270.0,1.08018175]
[1758892113675,0.0924359,109280.0,109270.0,0.68456107]
[1758892113980,0.0924359,109280.0,109270.0,0.61955673]
[1758892114176,0.0924359,109280.0,109270.0,0.1280443]
[1758892114478,0.0924359,109280.0,109270.0,0.4366]
[1758892115178,0.49234246,109280.0,109270.0,0.0366]
[1758892115385,0.49234246,109280.0,109270.0,0.08545854]
[1758892115771,0.49234246,109280.0,109270.0,0.0366]
[1758892116171,0.49234246,109280.0,109270.0,0.08546266]
[1758892117677,1.36050246,109280.0,109270.0,0.17690716]
[1758892117883,0.09672178,109280.0,109270.0,0.17690716]
[1758892118477,0.96476178,109280.0,109270.0,0.17690716]
[1758892119584,0.96476178,109280.0,109270.0,0.08546266]
[1758892119879,0.9604759,109280.0,109270.0,0.17690696]
[1758892120081,0.96476178,109280.0,109270.0,0.17690696]
[1758892120485,0.96476178,109280.0,109270.0,0.08546266]
[1758892121280,0.09672178,109280.0,109270.0,0.17690696]
[1758892121482,0.96424178,109280.0,109270.0,0.17690696]
[1758892122982,0.09672178,109280.0,109270.0,0.17690696]
[1758892123183,1.30738246,109280.0,109270.0,0.17690696]
[1758892123379,0.09672178,109280.0,109270.0,0.17690696]
[1758892123684,0.91184178,109280.0,109270.0,0.17690696]
[1758892123888,0.09672178,109280.0,109270.0,0.17690696]
[1758892124086,0.91160178,109280.0,109270.0,0.1280443]
[1758892124384,0.96324178,109280.0,109270.0,0.1280443]
[1758892124585,1.34307154,109280.0,109270.0,0.50787406]
[1758892124982,0.47655154,109280.0,109270.0,0.50787406]
[1758892125173,0.001,109280.0,109270.0,0.99938629]
[1758892125379,0.001,109280.0,109270.0,1.06439063]
[1758892126584,0.07199297,109290.0,109280.0,0.1265359]
[1758892126781,0.81481456,109300.0,109290.0,0.1265275]
[1758892127085,0.81481456,109300.0,109290.0,0.55522439]
[1758892127086,1.33809456,109300.0,109290.0,0.55522439]
[1758892127287,1.34238044,109300.0,109290.0,0.55522439]
[1758892127678,0.09571068,109300.0,109290.0,0.55522439]
[1758892127880,0.0914084,109320.0,109310.0,0.1265108]
[1758892128079,0.47123816,109320.0,109310.0,0.55520769]
[1758892128284,1.34208404,109320.0,109310.0,0.55520769]
[1758892128485,1.34208404,109320.0,109310.0,0.08396713]
[1758892128787,0.96225428,109320.0,109310.0,0.08396713]
[1758892129491,1.35766144,109320.0,109310.0,0.08396713]
[1758892129680,1.36066144,109320.0,109310.0,0.08396713]
[1758892130081,1.43328532,109320.0,109310.0,0.08396713]
[1758892131376,1.44128532,109320.0,109310.0,0.08496713]
[1758892131582,0.57472532,109320.0,109310.0,0.08496713]
[1758892131786,1.44028532,109320.0,109310.0,0.08496713]
[1758892132480,1.84028532,109320.0,109310.0,0.08496713]
[1758892132882,1.84028532,109320.0,109310.0,0.01479]
[1758892133489,1.86146965,109320.0,109310.0,0.001]
[1758892133785,0.091411,109310.0,109300.0,0.01379]
[1758892133978,0.0914194,109300.0,109280.0,0.06265713]
[1758892134185,0.49112084,109290.0,109280.0,0.06265713]
[1758892134384,0.0914361,109280.0,109270.0,0.06265713]
[1758892134592,0.49112914,109280.0,109270.0,0.01379]
[1758892134784,1.76576914,109280.0,109270.0,0.01379]
[1758892135084,0.89112914,109280.0,109270.0,0.01379]
[1758892135286,1.76604914,109280.0,109270.0,0.01379]
[1758892135791,1.76804914,109280.0,109270.0,0.01379]
[1758892136180,1.76804914,109280.0,109270.0,0.0351]
[1758892136384,1.76884914,109280.0,109270.0,0.0351]
[1758892136591,0.003,109280.0,109270.0,0.5265445]
[1758892136891,0.003,109280.0,109270.0,0.97081879]
[1758892137290,0.003,109280.0,109270.0,0.57541163]
[1758892137291,0.28408,109280.0,109270.0,0.57541163]
[1758892139392,0.3755159,109280.0,109270.0,0.57541163]
[1758892139889,0.3755159,109280.0,109270.0,0.48396713]
[1758892140099,0.3755159,109280.0,109270.0,0.08396713]
[1758892140594,0.77092306,109280.0,109270.0,0.08396713]
[1758892140796,0.3755159,109280.0,109270.0,0.08396713]
[1758892141395,0.44919043,109280.0,109270.0,0.08396713]
[1758892143298,0.44919043,109280.0,109270.0,0.17541163]
[1758892143496,0.16811043,109280.0,109270.0,0.17541163]
[1758892144392,0.07667453,109280.0,109270.0,0.17541163]
[1758892144699,0.16811063,109280.0,109270.0,0.17541163]
[1758892146002,0.17239651,109280.0,109270.0,0.17541163]
[1758892147399,0.16811063,109280.0,109270.0,0.17541163]
[1758892148096,0.17239651,109280.0,109270.0,0.17541163]
[1758892152103,0.08096041,109280.0,109270.0,0.17541163]
[1758892152304,0.17239661,109280.0,109270.0,0.1265445]
[1758892153005,0.08096041,109280.0,109270.0,0.1265445]
[1758892153304,0.17239661,109280.0,109270.0,0.1265445]
[1758892156206,0.003,109280.0,109270.0,0.61805673]
[1758892157408,0.003,109280.0,109270.0,0.63105673]
[1758892157896,0.001,109280.0,109270.0,0.61805673]
[1758892158097,0.003,109280.0,109270.0,0.69606107]
[1758892158507,0.0944361,109280.0,109270.0,0.63105673]
[1758892159202,0.0944361,109280.0,109270.0,0.69606107]
[1758892159405,0.09772198,109280.0,109270.0,0.29606107]
[1758892159605,0.09772198,109280.0,109270.0,0.29706107]
[1758892160404,0.9259621,109280.0,109270.0,0.0491]
[1758892160601,0.9259621,109280.0,109270.0,0.09805678]
[1758892161903,1.8093621,109280.0,109270.0,0.09805678]
[1758892162108,1.8093621,109280.0,109270.0,0.0491]
[1758892162511,1.8088421,109280.0,109270.0,0.0491]
[1758892163011,1.45514697,109280.0,109270.0,0.0491]
[1758892163212,0.57226697,109280.0,109270.0,0.0491]
[1758892163412,1.45502697,109280.0,109270.0,0.0491]
[1758892163610,1.8087221,109280.0,109270.0,0.0491]
[1758892165110,1.45502697,109280.0,109270.0,0.0491]
[1758892166116,1.8087221,109280.0,109270.0,0.0491]
[1758892167600,1.8087221,109280.0,109270.0,0.0768498]
[1758892167804,1.83036557,109280.0,109270.0,0.0768498]
[1758892168712,1.82796557,109280.0,109270.0,0.0768498]
[1758892169110,0.94760557,109280.0,109270.0,0.0768498]
[1758892169311,0.59391044,109280.0,109270.0,0.1001698]
[1758892169614,1.42768557,109280.0,109270.0,0.1001698]
[1758892170115,1.07399044,109280.0,109270.0,0.1001698]
[1758892170616,1.41169677,109280.0,109270.0,0.1001698]
[1758892171614,0.53161677,109280.0,109270.0,0.1001698]
[1758892171915,1.41121677,109280.0,109270.0,0.1001698]
[1758892172115,1.41105677,109280.0,109270.0,0.0768498]
[1758892172413,1.7487631,109280.0,109270.0,0.0768498]
[1758892173317,1.72711963,109280.0,109270.0,0.0768498]
[1758892176010,2.12711963,109280.0,109270.0,0.0768498]
[1758892176216,2.12711963,109280.0,109270.0,0.02779]
[1758892177117,1.7881733,109280.0,109270.0,0.02779]
[1758892177308,0.9099733,109280.0,109270.0,0.02779]
[1758892177513,0.9099733,109280.0,109270.0,0.04944]
[1758892177715,1.7879733,109280.0,109270.0,0.04944]
[1758892178114,1.7879733,109280.0,109270.0,0.02779]
[1758892178318,2.12567963,109280.0,109270.0,0.02779]
[1758892179415,1.72567963,109280.0,109270.0,0.02779]
[1758892180411,1.72567963,109280.0,109270.0,0.04944]
[1758892180812,1.3879733,109280.0,109270.0,0.04944]
[1758892181114,0.17226717,109280.0,109270.0,0.04944]
[1758892181311,0.71706499,109280.0,109270.0,0.1899445]
[1758892181617,0.07654499,109280.0,109270.0,0.1899444]
[1758892181819,0.16798129,109280.0,109270.0,0.57010316]
[1758892182015,0.16798129,109280.0,109270.0,0.60595657]
[1758892182213,0.16798129,109280.0,109270.0,0.54095223]
[1758892182908,0.5099735,109280.0,109270.0,0.04944]
[1758892184015,1.3861735,109280.0,109270.0,0.04944]
[1758892185218,1.3861735,109280.0,109270.0,0.02779]
[1758892185714,1.3861735,109280.0,109270.0,0.04944]
[1758892185920,0.5099735,109280.0,109270.0,0.04944]
[1758892186418,1.3852935,109280.0,109270.0,0.04944]
[1758892188019,1.3852535,109280.0,109270.0,0.04944]
[1758892188722,1.3852535,109280.0,109270.0,0.1408846]
[1758892189019,1.3852535,109280.0,109270.0,0.04944]
[1758892190319,1.3837335,109280.0,109270.0,0.04944]
[1758892191020,1.3836935,109280.0,109270.0,0.1408846]
[1758892191218,1.3836935,109280.0,109270.0,0.04944]
[1758892195822,1.04486717,109280.0,109270.0,0.1408846]
[1758892196018,1.04462717,109280.0,109270.0,0.04944]
[1758892196217,1.3823335,109280.0,109270.0,0.04944]
[1758892198326,1.3824135,109280.0,109270.0,0.04944]
[1758892198622,1.3824135,109280.0,109270.0,0.04948]
[1758892198826,0.5099735,109280.0,109270.0,0.1409246]
[1758892199021,0.07654499,109280.0,109270.0,0.5409246]
[1758892199222,0.21504844,109320.0,109310.0,0.03558]
[1758892199523,1.09974038,109320.0,109310.0,0.03558]
[1758892199718,1.10402626,109320.0,109310.0,0.03558]
[1758892199923,0.20842626,109320.0,109310.0,0.08457706]
[1758892200228,1.38470781,109320.0,109310.0,0.03558]
[1758892200423,1.36626639,109320.0,109310.0,0.03558]
[1758892200820,1.37826639,109320.0,109310.0,0.03658]
[1758892201325,1.37826639,109320.0,109310.0,0.08550723]
[1758892201824,1.36626639,109320.0,109310.0,0.08450723]
[1758892202025,1.37226639,109320.0,109310.0,0.08450723]
[1758892202424,1.37826639,109320.0,109310.0,0.08450723]
[1758892203523,1.70997272,109320.0,109310.0,0.01393]
[1758892203825,2.11097272,109320.0,109310.0,0.01393]
[1758892204620,1.25073272,109320.0,109310.0,0.01393]
[1758892204827,2.14721272,109320.0,109310.0,0.01393]
[1758892208026,0.0914112,109310.0,109300.0,0.06285723]
[1758892208226,0.43340341,109310.0,109300.0,0.01393]
[1758892208729,0.85530948,109310.0,109300.0,0.01393]
[1758892209027,0.47550328,109310.0,109300.0,0.01393]